[Event "FIDE Grand Swiss 2023"]
[Site "Villa Marina, Douglas, Isle of Man"]
[Date "2023.10.30"]
[Round "6.28"]
[White "Murzin, Volodar"]
[Black "Grandelius, Nils"]
[Result "1/2-1/2"]
[WhiteElo "2633"]
[BlackElo "2689"]
[EventDate "2023.10.25"]
[ECO "B90"]
[PlyCount "115"]
[BlackFideId "1710400"]
[TimeControl "40/100 + 20/50 + 15 + 30s/move"]
[WhiteFideId "44155573"]

1.e4 {[%clk 01:40:56] [%emt 00:00:03]} 1...c5 {[%clk 01:40:17] [%emt 00:00:41]} 
2.Nf3 {[%clk 01:41:21] [%emt 00:00:07]} 2...d6 {[%clk 01:40:29] [%emt 00:00:17]} 
3.d4 {[%clk 01:41:30] [%emt 00:00:22]} 3...cxd4 {[%clk 01:40:48] [%emt
00:00:11]} 4.Nxd4 {[%clk 01:41:50] [%emt 00:00:11]} 4...Nf6 {[%clk 01:41:06]
[%emt 00:00:11]} 5.Nc3 {[%clk 01:42:12] [%emt 00:00:08]} 5...a6 {[%clk 01:41:21]
[%emt 00:00:15]} 6.Be3 {[%clk 01:42:19] [%emt 00:00:24]} 6...e5 {[%clk 01:40:55]
[%emt 00:00:55]} 7.Nb3 {[%clk 01:42:43] [%emt 00:00:06]} 7...Be7 {[%clk
01:40:44] [%emt 00:00:40]} 8.f3 {[%clk 01:42:52] [%emt 00:00:22]} 8...Be6 
{[%clk 01:40:15] [%emt 00:00:59]} 9.Qd2 {[%clk 01:43:03] [%emt 00:00:19]} 
9...h5 {[%clk 01:40:11] [%emt 00:00:33]} 10.O-O-O {[%clk 01:38:24] [%emt
00:05:10]} 10...Nbd7 {[%clk 01:39:29] [%emt 00:01:12]} 11.Kb1 {[%clk 01:33:27]
[%emt 00:05:27]} 11...b5 {[%clk 01:38:45] [%emt 00:01:14]} 12.Nd5 {[%clk
01:32:40] [%emt 00:01:18]} 12...Bxd5 {[%clk 01:38:16] [%emt 00:00:59]} 13.exd5 
{[%clk 01:33:03] [%emt 00:00:07]} 13...Nb6 {[%clk 01:38:19] [%emt 00:00:27]} 
14.Bxb6 {[%clk 01:23:33] [%emt 00:10:00]} 14...Qxb6 {[%clk 01:38:41] [%emt
00:00:07]} 15.Na5 {[%clk 01:24:00] [%emt 00:00:03]} 15...Rc8 {[%clk 01:37:54]
[%emt 00:01:14]} 16.Nc6 {[%clk 01:24:17] [%emt 00:00:17]} 16...Nxd5 {[%clk
01:36:08] [%emt 00:02:15]} 17.Nxe7 {[%clk 01:24:26] [%emt 00:00:21]} 17...Nxe7 
{[%clk 01:36:31] [%emt 00:00:07]} 18.Qxd6 {[%clk 01:24:53] [%emt 00:00:04]} 
18...Qxd6 {[%clk 01:36:41] [%emt 00:00:20]} 19.Rxd6 {[%clk 01:25:20] [%emt
00:00:02]} 19...Nc6 {[%clk 01:37:00] [%emt 00:00:10]} 20.Rd2 {[%clk 01:21:40]
[%emt 00:04:11]} 20...Ke7 {[%clk 01:34:50] [%emt 00:02:40]} 21.Bd3 {[%clk
01:18:21] [%emt 00:03:49]} 21...g6 {[%clk 01:11:51] [%emt 00:23:29]} 22.Rhd1 
{[%clk 01:14:31] [%emt 00:04:20]} 22...Rhd8 {[%clk 01:10:00] [%emt 00:02:21]} 
23.a4 {[%clk 01:10:36] [%emt 00:04:26]} 23...Rb8 {[%clk 00:34:51] [%emt
00:35:38]} 24.Be4 {[%clk 01:04:33] [%emt 00:06:33]} 24...Rxd2 {[%clk 00:30:38]
[%emt 00:04:43]} 25.Rxd2 {[%clk 01:03:41] [%emt 00:01:22]} 25...Nd4 {[%clk
00:28:28] [%emt 00:02:41]} 26.f4 {[%clk 00:59:16] [%emt 00:04:54]} 26...Kf6 
{[%clk 00:21:28] [%emt 00:07:30]} 27.a5 {[%clk 00:55:09] [%emt 00:04:37]} 
27...b4 {[%clk 00:14:47] [%emt 00:07:11]} 28.Bd5 {[%clk 00:45:44] [%emt
00:09:56]} 28...Rb5 {[%clk 00:06:00] [%emt 00:09:17]} 29.fxe5+ {[%clk 00:45:18]
[%emt 00:00:55]} 29...Kxe5 {[%clk 00:06:28] [%emt 00:00:02]} 30.Bxf7 {[%clk
00:45:40] [%emt 00:00:08]} 30...g5 {[%clk 00:06:33] [%emt 00:00:25]} 31.Bxh5 
{[%clk 00:43:26] [%emt 00:02:44]} 31...Rxa5 {[%clk 00:07:02] [%emt 00:00:02]} 
32.Bg6 {[%clk 00:28:17] [%emt 00:15:38]} 32...Rc5 {[%clk 00:06:04] [%emt
00:01:28]} 33.Rf2 {[%clk 00:25:57] [%emt 00:02:50]} 33...a5 {[%clk 00:04:11]
[%emt 00:02:23]} 34.Rf8 {[%clk 00:26:12] [%emt 00:00:15]} 34...Ne6 {[%clk
00:00:52] [%emt 00:03:50]} 35.Re8 {[%clk 00:22:04] [%emt 00:04:38]} 35...Kf6 
{[%clk 00:01:06] [%emt 00:00:16]} 36.Bh5 {[%clk 00:21:37] [%emt 00:00:57]} 
36...Nd4 {[%clk 00:00:48] [%emt 00:00:47]} 37.Bd1 {[%clk 00:22:05] [%emt
00:00:02]} 37...Rd5 {[%clk 00:00:43] [%emt 00:00:35]} 38.g3 {[%clk 00:20:25]
[%emt 00:02:10]} 38...Rd7 {[%clk 00:00:35] [%emt 00:00:38]} 39.Ra8 {[%clk
00:12:03] [%emt 00:08:53]} 39...Rd5 {[%clk 00:00:56] [%emt 00:00:08]} 40.Ra6+ 
{[%clk 00:12:27] [%emt 00:00:06]} 40...Ke7 {[%clk 00:00:38] [%emt 00:00:47]} 
41.h4 {[%clk 00:07:54] [%emt 00:05:04]} 41...gxh4 {[%clk 00:43:03] [%emt
00:08:05]} 42.gxh4 {[%clk 00:57:40] [%emt 00:00:44]} 42...Nf5 {[%clk 00:39:09]
[%emt 00:04:23]} 43.Bf3 {[%clk 00:57:29] [%emt 00:00:42]} 43...Re5 {[%clk
00:39:32] [%emt 00:00:08]} 44.h5 {[%clk 00:56:28] [%emt 00:01:31]} 44...b3 
{[%clk 00:26:09] [%emt 00:13:52]} 45.cxb3 {[%clk 00:53:34] [%emt 00:03:25]} 
45...Re1+ {[%clk 00:25:48] [%emt 00:00:50]} 46.Ka2 {[%clk 00:53:03] [%emt
00:01:02]} 46...Nd4 {[%clk 00:26:12] [%emt 00:00:05]} 47.h6 {[%clk 00:42:23]
[%emt 00:11:10]} 47...Nc2 {[%clk 00:26:28] [%emt 00:00:15]} 48.b4 {[%clk
00:41:37] [%emt 00:01:16]} 48...Nxb4+ {[%clk 00:23:16] [%emt 00:03:42]} 49.Kb3 
{[%clk 00:29:29] [%emt 00:12:38]} 49...Re3+ {[%clk 00:23:31] [%emt 00:00:15]} 
50.Kc4 {[%clk 00:19:54] [%emt 00:10:04]} 50...Rxf3 {[%clk 00:21:43] [%emt
00:02:17]} 51.Ra8 {[%clk 00:18:43] [%emt 00:01:42]} 51...Rf4+ {[%clk 00:17:54]
[%emt 00:04:20]} 52.Kb5 {[%clk 00:16:05] [%emt 00:03:08]} 52...Rf5+ {[%clk
00:18:14] [%emt 00:00:09]} 53.Ka4 {[%clk 00:16:05] [%emt 00:00:30]} 53...Rf8 
{[%clk 00:17:47] [%emt 00:00:56]} 54.Rxf8 {[%clk 00:15:28] [%emt 00:01:08]} 
54...Kxf8 {[%clk 00:18:12] [%emt 00:00:04]} 55.Kxa5 {[%emt 00:00:14]} 55...Nd3 
{[%clk 00:18:35]} 56.b3 {[%clk 00:16:16] [%emt 00:00:05]} 56...Kg8 {[%clk
00:18:42] [%emt 00:00:23]} 57.Kb5 {[%clk 00:15:50] [%emt 00:00:57]} 57...Nc1 
{[%clk 00:19:03] [%emt 00:00:09]} 58.b4 {[%clk 00:16:16] [%emt 00:00:05]} 1/2-1/2

[Event "FIDE Grand Swiss 2023"]
[Site "Villa Marina, Douglas, Isle of Man"]
[Date "2023.10.30"]
[Round "6.29"]
[White "Navara, David"]
[Black "Svane, Frederik"]
[Result "0-1"]
[WhiteElo "2689"]
[BlackElo "2626"]
[EventDate "2023.10.25"]
[ECO "C80"]
[PlyCount "98"]
[BlackFideId "12923044"]
[TimeControl "40/100 + 20/50 + 15 + 30s/move"]
[WhiteFideId "309095"]

1.e4 {[%clk 01:40:58] [%emt 00:00:01]} 1...e5 {[%clk 01:40:53] [%emt 00:00:08]} 
2.Nf3 {[%clk 01:41:24] [%emt 00:00:03]} 2...Nc6 {[%clk 01:41:17] [%emt
00:00:06]} 3.Bb5 {[%clk 01:41:49] [%emt 00:00:05]} 3...a6 {[%clk 01:41:22] [%emt
00:00:25]} 4.Ba4 {[%clk 01:42:07] [%emt 00:00:13]} 4...Nf6 {[%clk 01:41:47]
[%emt 00:00:05]} 5.O-O {[%clk 01:42:25] [%emt 00:00:11]} 5...Nxe4 {[%clk
01:42:12] [%emt 00:00:04]} 6.d4 {[%clk 01:42:42] [%emt 00:00:14]} 6...b5 {[%clk
01:42:34] [%emt 00:00:08]} 7.Bb3 {[%clk 01:43:05] [%emt 00:00:06]} 7...d5 
{[%clk 01:42:59] [%emt 00:00:06]} 8.dxe5 {[%clk 01:43:04] [%emt 00:00:32]} 
8...Be6 {[%clk 01:43:23] [%emt 00:00:06]} 9.Be3 {[%clk 01:36:23] [%emt
00:07:10]} 9...Be7 {[%clk 01:43:10] [%emt 00:00:42]} 10.c3 {[%clk 01:35:50]
[%emt 00:01:04]} 10...Qd7 {[%clk 01:42:07] [%emt 00:01:34]} 11.Nbd2 {[%clk
01:34:49] [%emt 00:01:30]} 11...Rd8 {[%clk 01:42:30] [%emt 00:00:07]} 12.h3 
{[%clk 01:18:06] [%emt 00:17:12]} 12...O-O {[%clk 01:35:16] [%emt 00:07:44]} 
13.Bc2 {[%clk 01:15:58] [%emt 00:02:38]} 13...Bf5 {[%clk 01:31:51] [%emt
00:03:55]} 14.Nb3 {[%clk 01:14:10] [%emt 00:02:18]} 14...Bg6 {[%clk 01:23:09]
[%emt 00:09:12]} 15.Nbd4 {[%clk 00:51:47] [%emt 00:22:54]} 15...Na5 {[%clk
01:15:36] [%emt 00:08:02]} 16.e6 {[%clk 00:49:31] [%emt 00:02:46]} 16...Qd6 
{[%clk 01:10:14] [%emt 00:05:52]} 17.Bxe4 {[%clk 00:45:17] [%emt 00:04:44]} 
17...dxe4 {[%clk 00:58:43] [%emt 00:12:02]} 18.exf7+ {[%clk 00:45:28] [%emt
00:00:18]} 18...Rxf7 {[%clk 00:56:11] [%emt 00:03:02]} 19.Ng5 {[%clk 00:45:50]
[%emt 00:00:07]} 19...Rf6 {[%clk 00:55:35] [%emt 00:01:07]} 20.Qg4 {[%clk
00:42:59] [%emt 00:03:21]} 20...c5 {[%clk 00:43:40] [%emt 00:12:25]} 21.Nde6 
{[%clk 00:27:59] [%emt 00:15:30]} 21...h5 {[%clk 00:32:10] [%emt 00:12:00]} 
22.Qe2 {[%clk 00:28:12] [%emt 00:00:16]} 22...Rxe6 {[%clk 00:32:34] [%emt
00:00:07]} 23.Bxc5 {[%clk 00:28:26] [%emt 00:00:15]} 23...Bxg5 {[%clk 00:28:19]
[%emt 00:04:45]} 24.Bxd6 {[%clk 00:28:47] [%emt 00:00:09]} 24...Rexd6 {[%clk
00:28:44] [%emt 00:00:05]} 25.Rfd1 {[%clk 00:28:03] [%emt 00:01:13]} 25...Rd2 
{[%clk 00:26:37] [%emt 00:02:38]} 26.Qe1 {[%clk 00:26:00] [%emt 00:02:33]} 
26...Nc4 {[%clk 00:25:26] [%emt 00:01:42]} 27.b3 {[%clk 00:22:09] [%emt
00:04:21]} 27...Nb2 {[%clk 00:23:49] [%emt 00:02:06]} 28.Rxd2 {[%clk 00:22:13]
[%emt 00:00:27]} 28...Rxd2 {[%clk 00:24:11] [%emt 00:00:08]} 29.Qf1 {[%clk
00:17:41] [%emt 00:05:01]} 29...Nd3 {[%clk 00:20:58] [%emt 00:03:44]} 30.a4 
{[%clk 00:17:19] [%emt 00:00:51]} 30...e3 {[%clk 00:19:20] [%emt 00:02:08]} 
31.fxe3 {[%clk 00:17:33] [%emt 00:00:16]} 31...Bxe3+ {[%clk 00:19:41] [%emt
00:00:09]} 32.Kh2 {[%clk 00:16:06] [%emt 00:01:57]} 32...Be4 {[%clk 00:19:29]
[%emt 00:00:41]} 33.axb5 {[%clk 00:15:14] [%emt 00:01:23]} 33...axb5 {[%clk
00:19:56] [%emt 00:00:04]} 34.Ra5 {[%clk 00:10:57] [%emt 00:04:47]} 34...Bf4+ 
{[%clk 00:15:04] [%emt 00:05:20]} 35.Kg1 {[%clk 00:10:57] [%emt 00:00:30]} 
35...Bxg2 {[%clk 00:14:58] [%emt 00:00:37]} 36.Qxg2 {[%clk 00:10:50] [%emt
00:00:37]} 36...Rd1+ {[%clk 00:15:24] [%emt 00:00:05]} 37.Qf1 {[%clk 00:11:15]
[%emt 00:00:05]} 37...Be3+ {[%clk 00:15:49] [%emt 00:00:05]} 38.Kg2 {[%clk
00:11:37] [%emt 00:00:08]} 38...Nf4+ {[%clk 00:16:15] [%emt 00:00:05]} 39.Qxf4 
{[%clk 00:11:31] [%emt 00:00:36]} 39...Bxf4 {[%clk 00:16:35] [%emt 00:00:10]} 
40.Rxb5 {[%clk 00:11:53] [%emt 00:00:08]} 40...Rd3 {[%clk 00:16:27] [%emt
00:00:39]} 41.Rf5 {[%clk 00:10:30] [%emt 00:01:52]} 41...Bd2 {[%clk 00:13:53]
[%emt 00:03:04]} 42.c4 {[%clk 00:09:49] [%emt 00:01:12]} 42...Rxb3 {[%clk
00:06:24] [%emt 00:07:58]} 43.Rxh5 {[%clk 00:10:02] [%emt 00:00:16]} 43...Rc3 
{[%clk 00:06:43] [%emt 00:00:12]} 44.Rh4 {[%clk 00:10:12] [%emt 00:00:20]} 
44...Bg5 {[%clk 00:05:29] [%emt 00:01:44]} 45.Rg4 {[%clk 00:09:50] [%emt
00:00:52]} 45...Bf6 {[%clk 00:05:52] [%emt 00:00:07]} 46.Re4 {[%clk 00:10:08]
[%emt 00:00:11]} 46...Kf7 {[%clk 00:06:14] [%emt 00:00:09]} 47.Kh2 {[%clk
00:10:33] [%emt 00:00:05]} 47...Kg6 {[%clk 00:06:33] [%emt 00:00:11]} 48.Kg2 
{[%clk 00:10:58] [%emt 00:00:04]} 48...Kf5 {[%clk 00:06:52] [%emt 00:00:12]} 
49.Rg4 {[%clk 00:11:22] [%emt 00:00:05]} 49...Be5 {[%clk 00:07:01] [%emt
00:00:21]} 0-1

[Event "FIDE Grand Swiss 2023"]
[Site "Villa Marina, Douglas, Isle of Man"]
[Date "2023.10.30"]
[Round "6.30"]
[White "Tabatabaei, M. Amin"]
[Black "Durarbayli, Vasif"]
[Result "1/2-1/2"]
[WhiteElo "2685"]
[BlackElo "2625"]
[EventDate "2023.10.25"]
[ECO "E00"]
[PlyCount "93"]
[BlackFideId "13402935"]
[TimeControl "40/100 + 20/50 + 15 + 30s/move"]
[WhiteFideId "12521213"]

1.d4 {[%clk 01:40:23] [%emt 00:00:37]} 1...d5 {[%clk 01:40:51] [%emt 00:00:08]} 
2.c4 {[%clk 01:40:33] [%emt 00:00:20]} 2...e6 {[%clk 01:41:12] [%emt 00:00:09]} 
3.Nf3 {[%clk 01:39:24] [%emt 00:01:39]} 3...Nf6 {[%clk 01:41:32] [%emt
00:00:10]} 4.g3 {[%clk 01:39:47] [%emt 00:00:07]} 4...Bb4+ {[%clk 01:41:51]
[%emt 00:00:11]} 5.Bd2 {[%clk 01:40:09] [%emt 00:00:08]} 5...Be7 {[%clk
01:42:14] [%emt 00:00:07]} 6.Bg2 {[%clk 01:40:21] [%emt 00:00:18]} 6...O-O 
{[%clk 01:42:31] [%emt 00:00:13]} 7.O-O {[%clk 01:40:44] [%emt 00:00:07]} 
7...Nbd7 {[%clk 01:42:49] [%emt 00:00:12]} 8.Qc2 {[%clk 01:40:27] [%emt
00:00:47]} 8...c6 {[%clk 01:43:04] [%emt 00:00:16]} 9.a4 {[%clk 01:35:39] [%emt
00:05:18]} 9...a5 {[%clk 01:43:06] [%emt 00:00:28]} 10.Rc1 {[%clk 01:35:44]
[%emt 00:00:24]} 10...Ne4 {[%clk 01:42:17] [%emt 00:01:19]} 11.Ne1 {[%clk
01:31:48] [%emt 00:04:26]} 11...Nd6 {[%clk 01:33:19] [%emt 00:09:28]} 12.c5 
{[%clk 01:15:17] [%emt 00:17:02]} 12...Nf5 {[%clk 01:32:45] [%emt 00:01:04]} 
13.Nf3 {[%clk 01:15:24] [%emt 00:00:23]} 13...b6 {[%clk 01:25:19] [%emt
00:07:56]} 14.cxb6 {[%clk 01:09:00] [%emt 00:06:53]} 14...Bb7 {[%clk 01:20:55]
[%emt 00:04:55]} 15.g4 {[%clk 01:05:26] [%emt 00:04:03]} 15...Nh4 {[%clk
01:08:45] [%emt 00:12:41]} 16.Nxh4 {[%clk 01:05:07] [%emt 00:00:50]} 16...Bxh4 
{[%clk 01:09:08] [%emt 00:00:06]} 17.Ra3 {[%clk 01:01:23] [%emt 00:04:14]} 
17...f5 {[%clk 01:01:20] [%emt 00:08:18]} 18.gxf5 {[%clk 00:58:05] [%emt
00:03:48]} 18...Rxf5 {[%clk 01:01:18] [%emt 00:00:33]} 19.Rf3 {[%clk 00:57:18]
[%emt 00:01:15]} 19...Rxf3 {[%clk 01:00:34] [%emt 00:01:16]} 20.Bxf3 {[%clk
00:57:43] [%emt 00:00:04]} 20...Qxb6 {[%clk 00:53:32] [%emt 00:07:32]} 21.Be3 
{[%clk 00:57:34] [%emt 00:00:39]} 21...Bf6 {[%clk 00:49:50] [%emt 00:04:13]} 
22.Nd2 {[%clk 00:37:52] [%emt 00:20:12]} 22...Bxd4 {[%clk 00:43:28] [%emt
00:06:51]} 23.Nc4 {[%clk 00:35:22] [%emt 00:03:00]} 23...dxc4 {[%clk 00:39:45]
[%emt 00:04:14]} 24.Bxd4 {[%clk 00:35:43] [%emt 00:00:08]} 24...c5 {[%clk
00:39:48] [%emt 00:00:28]} 25.Bxb7 {[%clk 00:36:01] [%emt 00:00:11]} 25...Qxb7 
{[%clk 00:40:15] [%emt 00:00:03]} 26.Be3 {[%clk 00:36:07] [%emt 00:00:23]} 
26...Rf8 {[%clk 00:39:00] [%emt 00:01:46]} 27.Rd1 {[%clk 00:18:41] [%emt
00:17:57]} 27...Rf6 {[%clk 00:27:39] [%emt 00:11:50]} 28.f3 {[%clk 00:19:00]
[%emt 00:00:11]} 28...h6 {[%clk 00:27:11] [%emt 00:00:59]} 29.Qxc4 {[%clk
00:15:40] [%emt 00:03:50]} 29...Ne5 {[%clk 00:25:16] [%emt 00:02:25]} 30.Qc2 
{[%clk 00:15:05] [%emt 00:01:05]} 30...Rg6+ {[%clk 00:25:00] [%emt 00:00:45]} 
31.Kf1 {[%clk 00:13:46] [%emt 00:01:44]} 31...Kh7 {[%clk 00:21:31] [%emt
00:04:04]} 32.h4 {[%clk 00:12:22] [%emt 00:01:55]} 32...h5 {[%clk 00:15:28]
[%emt 00:06:33]} 33.Qxc5 {[%clk 00:11:43] [%emt 00:01:09]} 33...Qxb2 {[%clk
00:15:55] [%emt 00:00:03]} 34.Bf4 {[%clk 00:09:46] [%emt 00:02:27]} 34...Nf7 
{[%clk 00:12:40] [%emt 00:03:45]} 35.Qxh5+ {[%clk 00:09:53] [%emt 00:00:23]} 
35...Nh6 {[%clk 00:13:07] [%emt 00:00:02]} 36.Qxa5 {[%clk 00:06:36] [%emt
00:03:48]} 36...Nf5 {[%clk 00:13:21] [%emt 00:00:16]} 37.h5 {[%clk 00:06:09]
[%emt 00:00:57]} 37...Rf6 {[%clk 00:13:44] [%emt 00:00:07]} 38.Qd2 {[%clk
00:04:59] [%emt 00:01:39]} 38...Qb3 {[%clk 00:14:08] [%emt 00:00:07]} 39.Ra1 
{[%clk 00:02:57] [%emt 00:02:32]} 39...Qc4 {[%clk 00:10:47] [%emt 00:03:51]} 
40.Bg5 {[%clk 00:00:37] [%emt 00:02:50]} 40...Ng3+ {[%clk 00:06:34] [%emt
00:04:43]} 41.Kg2 {[%clk 00:20:30] [%emt 00:30:36]} 41...Ne4 {[%clk 00:56:57]
[%emt 00:00:08]} 42.fxe4 {[%clk 00:20:09] [%emt 00:00:51]} 42...Qxe4+ {[%clk
00:57:22] [%emt 00:00:05]} 43.Kh3 {[%clk 00:20:15] [%emt 00:00:23]} 43...Qf5+ 
{[%clk 00:57:30] [%emt 00:00:22]} 44.Kh4 {[%clk 00:19:51] [%emt 00:00:55]} 
44...Qf2+ {[%clk 00:57:43] [%emt 00:00:16]} 45.Kh3 {[%clk 00:20:10] [%emt
00:00:11]} 45...Qf5+ {[%clk 00:58:06] [%emt 00:00:07]} 46.Kh4 {[%clk 00:20:36]
[%emt 00:00:04]} 46...Qe4+ {[%clk 00:58:04] [%emt 00:00:33]} 47.Kh3 {[%clk
00:20:51] [%emt 00:00:14]} 1/2-1/2

[Event "FIDE Grand Swiss 2023"]
[Site "Villa Marina, Douglas, Isle of Man"]
[Date "2023.10.30"]
[Round "6.31"]
[White "Abasov, Nijat"]
[Black "Petrosyan, Manuel"]
[Result "1/2-1/2"]
[WhiteElo "2679"]
[BlackElo "2604"]
[EventDate "2023.10.25"]
[ECO "E32"]
[PlyCount "67"]
[BlackFideId "13300857"]
[TimeControl "40/100 + 20/50 + 15 + 30s/move"]
[WhiteFideId "13402960"]

1.c4 {[%clk 01:40:57] [%emt 00:00:02]} 1...Nf6 {[%clk 01:39:07] [%emt 00:01:53]} 
2.Nc3 {[%clk 01:41:16] [%emt 00:00:11]} 2...e6 {[%clk 01:39:30] [%emt 00:00:07]} 
3.d4 {[%clk 01:39:07] [%emt 00:02:39]} 3...Bb4 {[%clk 01:37:27] [%emt 00:02:33]} 
4.Qc2 {[%clk 01:39:29] [%emt 00:00:08]} 4...O-O {[%clk 01:37:00] [%emt
00:00:57]} 5.a3 {[%clk 01:39:34] [%emt 00:00:26]} 5...Bxc3+ {[%clk 01:37:23]
[%emt 00:00:06]} 6.Qxc3 {[%clk 01:39:59] [%emt 00:00:05]} 6...d6 {[%clk
01:31:58] [%emt 00:05:56]} 7.g3 {[%clk 01:33:18] [%emt 00:07:10]} 7...e5 {[%clk
01:30:59] [%emt 00:01:29]} 8.Bg2 {[%clk 01:26:01] [%emt 00:07:47]} 8...exd4 
{[%clk 01:20:42] [%emt 00:10:47]} 9.Qxd4 {[%clk 01:26:24] [%emt 00:00:06]} 
9...Nc6 {[%clk 01:21:09] [%emt 00:00:05]} 10.Qc3 {[%clk 01:26:27] [%emt
00:00:25]} 10...Re8 {[%clk 01:16:35] [%emt 00:05:06]} 11.Bg5 {[%clk 01:22:57]
[%emt 00:04:00]} 11...Ne5 {[%clk 01:05:18] [%emt 00:11:47]} 12.Nf3 {[%clk
01:18:16] [%emt 00:05:10]} 12...h6 {[%clk 00:57:49] [%emt 00:07:59]} 13.Bxf6 
{[%clk 01:12:52] [%emt 00:05:54]} 13...Qxf6 {[%clk 00:58:11] [%emt 00:00:08]} 
14.Nxe5 {[%clk 01:13:16] [%emt 00:00:06]} 14...Qxe5 {[%clk 00:48:04] [%emt
00:10:37]} 15.Qxe5 {[%clk 01:12:56] [%emt 00:00:50]} 15...dxe5 {[%clk 00:48:29]
[%emt 00:00:05]} 16.O-O-O {[%clk 01:10:27] [%emt 00:02:58]} 16...c6 {[%clk
00:48:34] [%emt 00:00:27]} 17.Kc2 {[%clk 01:09:29] [%emt 00:01:27]} 17...Kf8 
{[%clk 00:45:09] [%emt 00:03:56]} 18.Kc3 {[%clk 01:09:30] [%emt 00:00:29]} 
18...Bg4 {[%clk 00:44:04] [%emt 00:01:34]} 19.Rd2 {[%clk 01:09:33] [%emt
00:00:27]} 19...Rad8 {[%clk 00:43:09] [%emt 00:01:26]} 20.Rhd1 {[%clk 01:09:45]
[%emt 00:00:18]} 20...Ke7 {[%clk 00:43:23] [%emt 00:00:15]} 21.b4 {[%clk
01:07:49] [%emt 00:02:26]} 21...f6 {[%clk 00:37:14] [%emt 00:06:39]} 22.Rxd8 
{[%clk 01:07:51] [%emt 00:00:29]} 22...Rxd8 {[%clk 00:37:41] [%emt 00:00:03]} 
23.Rxd8 {[%clk 01:08:10] [%emt 00:00:10]} 23...Kxd8 {[%clk 00:38:08] [%emt
00:00:04]} 24.e3 {[%clk 01:08:27] [%emt 00:00:13]} 24...Kc7 {[%clk 00:37:41]
[%emt 00:00:57]} 25.c5 {[%clk 01:08:45] [%emt 00:00:11]} 25...g5 {[%clk
00:34:12] [%emt 00:03:59]} 26.f4 {[%clk 01:08:47] [%emt 00:00:28]} 26...Be2 
{[%clk 00:33:09] [%emt 00:01:33]} 27.fxe5 {[%clk 01:08:03] [%emt 00:01:14]} 
27...fxe5 {[%clk 00:31:22] [%emt 00:02:17]} 28.Be4 {[%clk 01:07:34] [%emt
00:00:59]} 28...b6 {[%clk 00:29:14] [%emt 00:02:39]} 29.h4 {[%clk 01:07:27]
[%emt 00:00:36]} 29...bxc5 {[%clk 00:29:03] [%emt 00:00:42]} 30.bxc5 {[%clk
01:07:49] [%emt 00:00:07]} 30...Kd7 {[%clk 00:21:10] [%emt 00:08:23]} 31.hxg5 
{[%clk 01:07:09] [%emt 00:01:11]} 31...hxg5 {[%clk 00:20:49] [%emt 00:00:51]} 
32.Bf5+ {[%clk 01:05:07] [%emt 00:02:31]} 32...Ke7 {[%clk 00:19:56] [%emt
00:01:23]} 33.Be4 {[%clk 01:05:13] [%emt 00:00:24]} 33...Kd7 {[%clk 00:20:21]
[%emt 00:00:06]} 34.Bf5+ {[%clk 01:05:39] [%emt 00:00:03]} 1/2-1/2